[Event "Titled Tuesday Blitz January 17 Early 2023"]
[White "Bortnyk, Mykola"]
[Black "Cappai, Davide"]
[WhiteFideId "14120836"]
[BlackFideId "813338"]
[WhiteElo "2425"]
[BlackElo "2140"]
[Result "1-0"]
[Round "03"]
[TimeControl "180+2"]
[Date "2023.01.17"]
[WhiteClock "0:00:27"]
[BlackClock "0:00:42"]

1. e4 {[%clk 0:03:00]}  c5 {[%clk 0:02:59]} 2. c3 {[%clk 0:03:01]}  Nf6 {[%clk 0:02:59]} 3. e5 {[%clk 0:03:01]}  Nd5 {[%clk 0:02:59]} 4. Nf3 {[%clk 0:03:02]}  g6 {[%clk 0:02:58]} 5. d4 {[%clk 0:02:57]}  cxd4 {[%clk 0:02:58]} 6. Qb3 {[%clk 0:02:57]}  Nb6 {[%clk 0:02:50]} 7. a4 {[%clk 0:02:57]}  d6 {[%clk 0:01:56]} 8. a5 {[%clk 0:02:29]}  N6d7 {[%clk 0:01:45]} 9. cxd4 {[%clk 0:02:24]}  dxe5 {[%clk 0:01:38]} 10. Bc4 {[%clk 0:02:13]}  e6 {[%clk 0:01:32]} 11. O-O {[%clk 0:02:07]}  Bg7 {[%clk 0:01:29]} 12. Bg5 {[%clk 0:02:06]}  Bf6 {[%clk 0:01:20]} 13. Bxf6 {[%clk 0:01:48]}  Qxf6 {[%clk 0:01:21]} 14. dxe5 {[%clk 0:01:46]}  Qe7 {[%clk 0:01:21]} 15. Nc3 {[%clk 0:01:41]}  O-O {[%clk 0:01:21]} 16. Ne4 {[%clk 0:01:33]}  Nc6 {[%clk 0:01:17]} 17. Qc3 {[%clk 0:01:33]}  Qb4 {[%clk 0:01:09]} 18. Qxb4 {[%clk 0:01:32]}  Nxb4 {[%clk 0:01:10]} 19. Rfd1 {[%clk 0:01:32]}  Nb8 {[%clk 0:01:07]} 20. Rd6 {[%clk 0:01:17]}  N8c6 {[%clk 0:01:07]} 21. Ra4 {[%clk 0:01:12]}  Kg7 {[%clk 0:01:07]} 22. g4 {[%clk 0:01:12]}  h6 {[%clk 0:01:07]} 23. h4 {[%clk 0:01:12]}  Rb8 {[%clk 0:01:06]} 24. g5 {[%clk 0:01:04]}  b5 {[%clk 0:01:06]} 25. axb6 {[%clk 0:01:04]}  axb6 {[%clk 0:01:06]} 26. gxh6+ {[%clk 0:00:54]}  Kxh6 {[%clk 0:01:07]} 27. Bb5 {[%clk 0:00:48]}  Bb7 {[%clk 0:01:05]} 28. Nf6 {[%clk 0:00:45]}  Rbc8 {[%clk 0:00:57]} 29. Rd7 {[%clk 0:00:41]}  Ba8 {[%clk 0:00:53]} 30. Bxc6 {[%clk 0:00:37]}  Bxc6 {[%clk 0:00:52]} 31. Rxb4 {[%clk 0:00:37]}  Bxd7 {[%clk 0:00:53]} 32. Nxd7 {[%clk 0:00:37]}  Rc1+ {[%clk 0:00:53]} 33. Kg2 {[%clk 0:00:37]}  Rd8 {[%clk 0:00:54]} 34. Nf6 {[%clk 0:00:36]}  Rc6 {[%clk 0:00:51]} 35. Ng5 {[%clk 0:00:36]}  Kg7 {[%clk 0:00:49]} 36. Ng4 {[%clk 0:00:34]}  Rd2 {[%clk 0:00:47]} 37. Rf4 {[%clk 0:00:32]}  Rc7 {[%clk 0:00:47]} 38. b4 {[%clk 0:00:32]}  Rb2 {[%clk 0:00:47]} 39. Ne3 {[%clk 0:00:31]}  Re2 {[%clk 0:00:46]} 40. Ne4 {[%clk 0:00:27]}  Rc3 {[%clk 0:00:42]} 41. Nxc3 {[%clk 0:00:27]} 1-0


[Site "https://www.chess.com"]

[Event "Titled Tuesday Blitz January 17 Early 2023"]
[White "Jimenez Almeida, Luis David"]
[Black "Esipenko, Andrey"]
[WhiteFideId "22242244"]
[BlackFideId "24175439"]
[WhiteElo "2242"]
[BlackElo "2679"]
[Result "0-1"]
[Round "03"]
[TimeControl "180+2"]
[Date "2023.01.17"]
[WhiteClock "0:00:04"]
[BlackClock "0:00:04"]

1. e4 {[%clk 0:03:00]}  Nc6 {[%clk 0:02:56]} 2. d4 {[%clk 0:03:00]}  d5 {[%clk 0:02:53]} 3. e5 {[%clk 0:03:00]}  Bf5 {[%clk 0:02:53]} 4. Nf3 {[%clk 0:02:58]}  e6 {[%clk 0:02:52]} 5. Bd3 {[%clk 0:02:57]}  Nge7 {[%clk 0:02:49]} 6. h3 {[%clk 0:02:54]}  Qd7 {[%clk 0:02:47]} 7. c3 {[%clk 0:02:50]}  f6 {[%clk 0:02:47]} 8. Bf4 {[%clk 0:02:42]}  Ng6 {[%clk 0:02:43]} 9. Bh2 {[%clk 0:02:36]}  Bxd3 {[%clk 0:02:43]} 10. Qxd3 {[%clk 0:02:37]}  fxe5 {[%clk 0:02:44]} 11. dxe5 {[%clk 0:02:35]}  Bc5 {[%clk 0:02:44]} 12. h4 {[%clk 0:02:31]}  O-O {[%clk 0:02:40]} 13. Nbd2 {[%clk 0:02:28]}  Rf5 {[%clk 0:02:30]} 14. O-O-O {[%clk 0:02:10]}  Ncxe5 {[%clk 0:02:20]} 15. Nxe5 {[%clk 0:02:10]}  Nxe5 {[%clk 0:02:21]} 16. Qe2 {[%clk 0:02:10]}  Nc6 {[%clk 0:02:10]} 17. Ne4 {[%clk 0:02:05]}  Be7 {[%clk 0:02:06]} 18. g4 {[%clk 0:02:05]}  Rff8 {[%clk 0:01:59]} 19. g5 {[%clk 0:01:58]}  Qe8 {[%clk 0:00:56]} 20. Nd2 {[%clk 0:01:57]}  Bd6 {[%clk 0:00:55]} 21. Bxd6 {[%clk 0:01:41]}  cxd6 {[%clk 0:00:55]} 22. Rde1 {[%clk 0:01:42]}  Ne5 {[%clk 0:00:55]} 23. Kb1 {[%clk 0:01:40]}  Qa4 {[%clk 0:00:47]} 24. Ka1 {[%clk 0:01:37]}  Qf4 {[%clk 0:00:43]} 25. f3 {[%clk 0:01:24]}  b5 {[%clk 0:00:43]} 26. Nb3 {[%clk 0:01:08]}  b4 {[%clk 0:00:43]} 27. cxb4 {[%clk 0:01:06]}  Qxb4 {[%clk 0:00:44]} 28. g6 {[%clk 0:00:50]}  h6 {[%clk 0:00:39]} 29. Rhf1 {[%clk 0:00:41]}  Rf4 {[%clk 0:00:35]} 30. Qa6 {[%clk 0:00:39]}  Qb6 {[%clk 0:00:31]} 31. Qe2 {[%clk 0:00:32]}  a5 {[%clk 0:00:30]} 32. Qd2 {[%clk 0:00:29]}  Rf6 {[%clk 0:00:15]} 33. Nd4 {[%clk 0:00:20]}  a4 {[%clk 0:00:13]} 34. f4 {[%clk 0:00:19]}  Nc4 {[%clk 0:00:12]} 35. Qc3 {[%clk 0:00:20]}  e5 {[%clk 0:00:09]} 36. fxe5 {[%clk 0:00:17]}  dxe5 {[%clk 0:00:10]} 37. Nf5 {[%clk 0:00:17]}  Qe6 {[%clk 0:00:09]} 38. Qd3 {[%clk 0:00:12]}  e4 {[%clk 0:00:08]} 39. Qxd5 {[%clk 0:00:11]}  Qxd5 {[%clk 0:00:07]} 40. Ne7+ {[%clk 0:00:12]}  Kh8 {[%clk 0:00:07]} 41. Nxd5 {[%clk 0:00:12]}  Rxg6 {[%clk 0:00:07]} 42. Rf4 {[%clk 0:00:08]}  Nd6 {[%clk 0:00:05]} 43. a3 {[%clk 0:00:07]}  Re6 {[%clk 0:00:04]} 44. Re3 {[%clk 0:00:07]}  Re5 {[%clk 0:00:04]} 45. Nc3 {[%clk 0:00:06]}  Rae8 {[%clk 0:00:03]} 46. Ka2 {[%clk 0:00:06]}  g5 {[%clk 0:00:02]} 47. hxg5 {[%clk 0:00:06]}  hxg5 {[%clk 0:00:03]} 48. Rg4 {[%clk 0:00:07]}  Kg7 {[%clk 0:00:03]} 49. Nxa4 {[%clk 0:00:07]}  Nf7 {[%clk 0:00:02]} 50. Nc3 {[%clk 0:00:07]}  Nd6 {[%clk 0:00:02]} 51. a4 {[%clk 0:00:07]}  Kg6 {[%clk 0:00:02]} 52. Rgg3 {[%clk 0:00:07]}  Nf5 {[%clk 0:00:02]} 53. Rh3 {[%clk 0:00:02]}  Nxe3 {[%clk 0:00:02]} 54. Rxe3 {[%clk 0:00:03]}  Kf5 {[%clk 0:00:02]} 55. b4 {[%clk 0:00:03]}  Kf4 {[%clk 0:00:02]} 56. Re1 {[%clk 0:00:03]}  e3 {[%clk 0:00:03]} 57. a5 {[%clk 0:00:03]}  Kf3 {[%clk 0:00:02]} 58. Kb3 {[%clk 0:00:03]}  e2 {[%clk 0:00:03]} 59. a6 {[%clk 0:00:03]}  g4 {[%clk 0:00:02]} 60. b5 {[%clk 0:00:03]}  R5e6 {[%clk 0:00:02]} 61. a7 {[%clk 0:00:03]}  Ra8 {[%clk 0:00:02]} 62. Rxe2 {[%clk 0:00:03]}  Rxe2 {[%clk 0:00:02]} 63. b6 {[%clk 0:00:04]}  Re7 {[%clk 0:00:02]} 64. Nd5 {[%clk 0:00:04]}  Rb7 {[%clk 0:00:02]} 65. Kc4 {[%clk 0:00:04]}  Raxa7 {[%clk 0:00:02]} 66. bxa7 {[%clk 0:00:04]}  Rxa7 {[%clk 0:00:03]} 67. Nf6 {[%clk 0:00:04]}  Rf7 {[%clk 0:00:03]} 68. Nh5 {[%clk 0:00:04]}  Rf5 {[%clk 0:00:03]} 69. Kd4 {[%clk 0:00:04]}  Rxh5 {[%clk 0:00:04]} 0-1


[Site "https://www.chess.com"]

[Event "Titled Tuesday Blitz January 17 Early 2023"]
[White "Dominguez Perez, Leinier"]
[Black "Balabayeva, Xeniya"]
[WhiteFideId "3503240"]
[BlackFideId "13719688"]
[WhiteElo "2739"]
[BlackElo "2191"]
[Result "1-0"]
[Round "03"]
[TimeControl "180+2"]
[Date "2023.01.17"]
[WhiteClock "0:00:22"]
[BlackClock "0:00:03"]

1. d4 {[%clk 0:03:00]}  d5 {[%clk 0:02:59]} 2. Nf3 {[%clk 0:03:01]}  Nf6 {[%clk 0:02:59]} 3. e3 {[%clk 0:03:02]}  e6 {[%clk 0:02:58]} 4. Nbd2 {[%clk 0:03:01]}  c5 {[%clk 0:02:58]} 5. b3 {[%clk 0:03:01]}  Nc6 {[%clk 0:02:54]} 6. Bb2 {[%clk 0:03:01]}  Bd6 {[%clk 0:02:52]} 7. dxc5 {[%clk 0:03:01]}  Bxc5 {[%clk 0:02:51]} 8. a3 {[%clk 0:03:01]}  a5 {[%clk 0:02:46]} 9. Bd3 {[%clk 0:02:57]}  Qe7 {[%clk 0:02:25]} 10. c4 {[%clk 0:02:56]}  dxc4 {[%clk 0:02:23]} 11. Nxc4 {[%clk 0:02:55]}  b6 {[%clk 0:02:07]} 12. O-O {[%clk 0:02:45]}  O-O {[%clk 0:02:04]} 13. Qc2 {[%clk 0:02:11]}  h6 {[%clk 0:02:01]} 14. Nxb6 {[%clk 0:01:58]}  Bxb6 {[%clk 0:02:00]} 15. Qxc6 {[%clk 0:01:57]}  Rb8 {[%clk 0:02:00]} 16. Be5 {[%clk 0:01:45]}  Qb7 {[%clk 0:00:54]} 17. Qa4 {[%clk 0:01:21]}  Bd7 {[%clk 0:00:37]} 18. Qh4 {[%clk 0:01:15]}  Bd8 {[%clk 0:00:20]} 19. Bxb8 {[%clk 0:01:12]}  Qxb8 {[%clk 0:00:19]} 20. Qc4 {[%clk 0:01:06]}  Bc7 {[%clk 0:00:17]} 21. b4 {[%clk 0:00:55]}  axb4 {[%clk 0:00:16]} 22. axb4 {[%clk 0:00:56]}  Bd6 {[%clk 0:00:16]} 23. b5 {[%clk 0:00:56]}  Rc8 {[%clk 0:00:16]} 24. Qb3 {[%clk 0:00:50]}  Bc6 {[%clk 0:00:07]} 25. Rfc1 {[%clk 0:00:45]}  Bxf3 {[%clk 0:00:07]} 26. Rxc8+ {[%clk 0:00:34]}  Qxc8 {[%clk 0:00:08]} 27. gxf3 {[%clk 0:00:34]}  Be5 {[%clk 0:00:07]} 28. Rb1 {[%clk 0:00:29]}  Nd5 {[%clk 0:00:05]} 29. f4 {[%clk 0:00:27]}  Bb8 {[%clk 0:00:04]} 30. Qc4 {[%clk 0:00:23]}  g5 {[%clk 0:00:03]} 31. Qxc8+ {[%clk 0:00:22]} 1-0


[Site "https://www.chess.com"]

[Event "Titled Tuesday Blitz January 17 Early 2023"]
[White "Demchenko, Anton"]
[Black "Md, Imran"]
[WhiteFideId "4160258"]
[BlackFideId "25748580"]
[WhiteElo "2623"]
[BlackElo "2284"]
[Result "1/2-1/2"]
[Round "03"]
[TimeControl "180+2"]
[Date "2023.01.17"]
[WhiteClock "0:00:10"]
[BlackClock "0:00:21"]

1. e4 {[%clk 0:03:00]}  c5 {[%clk 0:02:58]} 2. Nf3 {[%clk 0:03:00]}  e6 {[%clk 0:02:46]} 3. c3 {[%clk 0:02:59]}  d5 {[%clk 0:02:45]} 4. exd5 {[%clk 0:02:59]}  Qxd5 {[%clk 0:02:43]} 5. d4 {[%clk 0:03:00]}  Nc6 {[%clk 0:02:42]} 6. Na3 {[%clk 0:03:00]}  cxd4 {[%clk 0:02:40]} 7. Nb5 {[%clk 0:03:00]}  Qd7 {[%clk 0:02:29]} 8. Nbxd4 {[%clk 0:03:01]}  Nf6 {[%clk 0:02:27]} 9. Nxc6 {[%clk 0:02:37]}  Qxc6 {[%clk 0:02:23]} 10. a4 {[%clk 0:02:34]}  Bd7 {[%clk 0:02:22]} 11. Bd3 {[%clk 0:02:21]}  Bd6 {[%clk 0:02:16]} 12. O-O {[%clk 0:02:21]}  O-O {[%clk 0:02:15]} 13. Qe2 {[%clk 0:02:18]}  Rac8 {[%clk 0:02:12]} 14. Be3 {[%clk 0:02:16]}  a6 {[%clk 0:02:11]} 15. Bd4 {[%clk 0:02:14]}  Nd5 {[%clk 0:02:09]} 16. Ne5 {[%clk 0:01:30]}  Bxe5 {[%clk 0:01:59]} 17. Bxe5 {[%clk 0:01:31]}  f6 {[%clk 0:01:56]} 18. Bg3 {[%clk 0:01:31]}  e5 {[%clk 0:01:55]} 19. Rfd1 {[%clk 0:01:28]}  Be6 {[%clk 0:01:53]} 20. Qe4 {[%clk 0:01:23]}  g6 {[%clk 0:01:49]} 21. h4 {[%clk 0:01:24]}  Rfd8 {[%clk 0:01:47]} 22. Qf3 {[%clk 0:01:20]}  h5 {[%clk 0:01:39]} 23. c4 {[%clk 0:00:41]}  Nf4 {[%clk 0:01:32]} 24. Qxc6 {[%clk 0:00:33]}  Rxc6 {[%clk 0:01:27]} 25. Bxf4 {[%clk 0:00:33]}  exf4 {[%clk 0:01:26]} 26. Bxg6 {[%clk 0:00:33]}  Rxd1+ {[%clk 0:01:24]} 27. Rxd1 {[%clk 0:00:34]}  Rxc4 {[%clk 0:01:22]} 28. Bxh5 {[%clk 0:00:31]}  Rxa4 {[%clk 0:01:22]} 29. Bf3 {[%clk 0:00:31]}  Rb4 {[%clk 0:01:20]} 30. Rd2 {[%clk 0:00:30]}  a5 {[%clk 0:01:16]} 31. h5 {[%clk 0:00:30]}  Kh7 {[%clk 0:01:11]} 32. Kf1 {[%clk 0:00:26]}  a4 {[%clk 0:01:07]} 33. Ke1 {[%clk 0:00:27]}  Kh6 {[%clk 0:01:03]} 34. Kd1 {[%clk 0:00:26]}  b5 {[%clk 0:00:57]} 35. Rd6 {[%clk 0:00:21]}  Bb3+ {[%clk 0:00:54]} 36. Kd2 {[%clk 0:00:21]}  Kg5 {[%clk 0:00:53]} 37. Rc6 {[%clk 0:00:05]}  Bc4 {[%clk 0:00:46]} 38. Rc5+ {[%clk 0:00:06]}  Kh6 {[%clk 0:00:45]} 39. Kc1 {[%clk 0:00:06]}  Be6 {[%clk 0:00:41]} 40. Rc6 {[%clk 0:00:07]}  Rc4+ {[%clk 0:00:40]} 41. Rxc4 {[%clk 0:00:07]}  Bxc4 {[%clk 0:00:39]} 42. Bd1 {[%clk 0:00:08]}  Bd5 {[%clk 0:00:35]} 43. g3 {[%clk 0:00:07]}  f3 {[%clk 0:00:31]} 44. g4 {[%clk 0:00:03]}  Kg5 {[%clk 0:00:31]} 45. Kd2 {[%clk 0:00:04]}  Be4 {[%clk 0:00:21]} 46. Ke3 {[%clk 0:00:03]}  Bc6 {[%clk 0:00:16]} 47. Kd4 {[%clk 0:00:02]}  b4 {[%clk 0:00:16]} 48. Kc5 {[%clk 0:00:02]}  a3 {[%clk 0:00:13]} 49. bxa3 {[%clk 0:00:03]}  bxa3 {[%clk 0:00:14]} 50. Bb3 {[%clk 0:00:03]}  Be4 {[%clk 0:00:13]} 51. Kb4 {[%clk 0:00:04]}  Kxg4 {[%clk 0:00:12]} 52. h6 {[%clk 0:00:04]}  Kg5 {[%clk 0:00:12]} 53. Kxa3 {[%clk 0:00:05]}  Kxh6 {[%clk 0:00:13]} 54. Kb2 {[%clk 0:00:05]}  Kg5 {[%clk 0:00:14]} 55. Kc3 {[%clk 0:00:06]}  f5 {[%clk 0:00:15]} 56. Kd2 {[%clk 0:00:06]}  Kf4 {[%clk 0:00:16]} 57. Ke1 {[%clk 0:00:06]}  Ke5 {[%clk 0:00:15]} 58. Bf7 {[%clk 0:00:07]}  Kf4 {[%clk 0:00:15]} 59. Be6 {[%clk 0:00:07]}  Ke5 {[%clk 0:00:16]} 60. Bb3 {[%clk 0:00:07]}  Bd5 {[%clk 0:00:16]} 61. Bc2 {[%clk 0:00:07]}  f4 {[%clk 0:00:16]} 62. Ba4 {[%clk 0:00:07]}  Kd4 {[%clk 0:00:17]} 63. Bc2 {[%clk 0:00:08]}  Kc3 {[%clk 0:00:18]} 64. Ba4 {[%clk 0:00:08]}  Kd4 {[%clk 0:00:19]} 65. Be8 {[%clk 0:00:08]}  Be4 {[%clk 0:00:20]} 66. Bh5 {[%clk 0:00:09]}  Bd5 {[%clk 0:00:21]} 67. Be8 {[%clk 0:00:09]}  Be4 {[%clk 0:00:21]} 68. Bh5 {[%clk 0:00:10]}  Bd5 {[%clk 0:00:21]} 69. Be8 {[%clk 0:00:10]} 1/2-1/2


[Site "https://www.chess.com"]

[Event "Titled Tuesday Blitz January 17 Early 2023"]
[White "Sai Han Thiha"]
[Black "Xu, Yi"]
[WhiteFideId "13012290"]
[BlackFideId "8605564"]
[WhiteElo "2070"]
[BlackElo "2527"]
[Result "0-1"]
[Round "03"]
[TimeControl "180+2"]
[Date "2023.01.17"]
[WhiteClock "0:00:03"]
[BlackClock "0:00:02"]

1. d4 {[%clk 0:03:00]}  Nf6 {[%clk 0:03:00]} 2. c4 {[%clk 0:03:01]}  e6 {[%clk 0:03:00]} 3. Nf3 {[%clk 0:03:02]}  d5 {[%clk 0:03:00]} 4. Nc3 {[%clk 0:03:02]}  Bb4 {[%clk 0:03:00]} 5. Qa4+ {[%clk 0:03:01]}  Nc6 {[%clk 0:03:00]} 6. cxd5 {[%clk 0:03:02]}  exd5 {[%clk 0:03:00]} 7. Bg5 {[%clk 0:03:03]}  h6 {[%clk 0:03:01]} 8. Bxf6 {[%clk 0:03:03]}  Qxf6 {[%clk 0:03:01]} 9. e3 {[%clk 0:03:04]}  O-O {[%clk 0:03:01]} 10. Be2 {[%clk 0:03:04]}  Be6 {[%clk 0:02:49]} 11. a3 {[%clk 0:02:56]}  Bxc3+ {[%clk 0:02:36]} 12. bxc3 {[%clk 0:02:57]}  a6 {[%clk 0:02:37]} 13. Qc2 {[%clk 0:01:57]}  Na5 {[%clk 0:02:24]} 14. a4 {[%clk 0:01:52]}  Rac8 {[%clk 0:01:58]} 15. O-O {[%clk 0:01:48]}  c5 {[%clk 0:01:56]} 16. Qb2 {[%clk 0:01:39]}  Qe7 {[%clk 0:01:29]} 17. Ne5 {[%clk 0:01:00]}  c4 {[%clk 0:01:12]} 18. Bd1 {[%clk 0:00:44]}  Bf5 {[%clk 0:00:59]} 19. Qb6 {[%clk 0:00:42]}  Qc7 {[%clk 0:00:54]} 20. Qxc7 {[%clk 0:00:41]}  Rxc7 {[%clk 0:00:55]} 21. g4 {[%clk 0:00:40]}  Bh7 {[%clk 0:00:54]} 22. Ra2 {[%clk 0:00:31]}  Ra8 {[%clk 0:00:51]} 23. Rb2 {[%clk 0:00:31]}  Kf8 {[%clk 0:00:42]} 24. Rb6 {[%clk 0:00:29]}  Ke7 {[%clk 0:00:42]} 25. Bf3 {[%clk 0:00:19]}  Rd8 {[%clk 0:00:42]} 26. Bg2 {[%clk 0:00:19]}  Rd6 {[%clk 0:00:35]} 27. Rb4 {[%clk 0:00:17]}  Nb3 {[%clk 0:00:26]} 28. Re1 {[%clk 0:00:16]}  f6 {[%clk 0:00:23]} 29. Nf3 {[%clk 0:00:17]}  Be4 {[%clk 0:00:22]} 30. Nh4 {[%clk 0:00:17]}  g5 {[%clk 0:00:14]} 31. Bxe4 {[%clk 0:00:16]}  gxh4 {[%clk 0:00:14]} 32. Bf3 {[%clk 0:00:13]}  b5 {[%clk 0:00:10]} 33. axb5 {[%clk 0:00:13]}  a5 {[%clk 0:00:11]} 34. Ra4 {[%clk 0:00:12]}  Rb7 {[%clk 0:00:10]} 35. e4 {[%clk 0:00:11]}  Nd2 {[%clk 0:00:10]} 36. Bg2 {[%clk 0:00:09]}  Rxb5 {[%clk 0:00:05]} 37. exd5+ {[%clk 0:00:09]}  Kd7 {[%clk 0:00:05]} 38. Ra2 {[%clk 0:00:08]}  Nb3 {[%clk 0:00:05]} 39. Be4 {[%clk 0:00:08]}  Kc7 {[%clk 0:00:05]} 40. f4 {[%clk 0:00:08]}  Kb6 {[%clk 0:00:05]} 41. Kf2 {[%clk 0:00:08]}  Ka6 {[%clk 0:00:04]} 42. Ree2 {[%clk 0:00:07]}  Rb8 {[%clk 0:00:04]} 43. Ra4 {[%clk 0:00:08]}  Kb5 {[%clk 0:00:04]} 44. Rea2 {[%clk 0:00:08]}  Nc1 {[%clk 0:00:04]} 45. Rxa5+ {[%clk 0:00:08]}  Kb6 {[%clk 0:00:04]} 46. Ra6+ {[%clk 0:00:07]}  Kc7 {[%clk 0:00:05]} 47. Rxd6 {[%clk 0:00:07]}  Kxd6 {[%clk 0:00:05]} 48. Ra6+ {[%clk 0:00:07]}  Ke7 {[%clk 0:00:06]} 49. Re6+ {[%clk 0:00:07]}  Kf7 {[%clk 0:00:06]} 50. Ra6 {[%clk 0:00:06]}  Rb2+ {[%clk 0:00:07]} 51. Ke1 {[%clk 0:00:06]}  Re2+ {[%clk 0:00:06]} 52. Kd1 {[%clk 0:00:06]}  Rxe4 {[%clk 0:00:06]} 53. Kxc1 {[%clk 0:00:06]}  Rxf4 {[%clk 0:00:07]} 54. Ra7+ {[%clk 0:00:05]}  Ke8 {[%clk 0:00:07]} 55. h3 {[%clk 0:00:05]}  Rf3 {[%clk 0:00:08]} 56. Kd2 {[%clk 0:00:04]}  Rd3+ {[%clk 0:00:08]} 57. Kc2 {[%clk 0:00:04]}  Rxh3 {[%clk 0:00:08]} 58. Rh7 {[%clk 0:00:05]}  Rh2+ {[%clk 0:00:08]} 59. Kb1 {[%clk 0:00:04]}  Rg2 {[%clk 0:00:07]} 60. Rxh6 {[%clk 0:00:02]}  Rxg4 {[%clk 0:00:07]} 61. Kb2 {[%clk 0:00:03]}  Ke7 {[%clk 0:00:05]} 62. Ka3 {[%clk 0:00:02]}  Kd6 {[%clk 0:00:05]} 63. Kb2 {[%clk 0:00:01]}  Kxd5 {[%clk 0:00:05]} 64. Rxf6 {[%clk 0:00:02]}  Rg2+ {[%clk 0:00:04]} 65. Ka3 {[%clk 0:00:02]}  Rc2 {[%clk 0:00:04]} 66. Kb4 {[%clk 0:00:01]}  Rb2+ {[%clk 0:00:04]} 67. Ka4 {[%clk 0:00:02]}  Rb3 {[%clk 0:00:04]} 68. Rf5+ {[%clk 0:00:01]}  Ke4 {[%clk 0:00:04]} 69. Rh5 {[%clk 0:00:02]}  Rxc3 {[%clk 0:00:02]} 70. Rxh4+ {[%clk 0:00:03]}  Kd3 {[%clk 0:00:02]} 71. d5 {[%clk 0:00:03]}  Rc1 {[%clk 0:00:02]} 72. d6 {[%clk 0:00:02]}  Rd1 {[%clk 0:00:02]} 73. Kb4 {[%clk 0:00:03]}  c3 {[%clk 0:00:02]} 0-1


[Site "https://www.chess.com"]

[Event "Titled Tuesday Blitz January 17 Early 2023"]
[White "Vivas Zamora, Fabian Ernesto"]
[Black "Grandelius, Nils"]
[WhiteFideId "3902480"]
[BlackFideId "1710400"]
[WhiteElo "2346"]
[BlackElo "2664"]
[Result "0-1"]
[Round "03"]
[TimeControl "180+2"]
[Date "2023.01.17"]
[WhiteClock "0:00:02"]
[BlackClock "0:01:14"]

1. e4 {[%clk 0:03:00]}  c5 {[%clk 0:03:00]} 2. Nc3 {[%clk 0:03:00]}  e6 {[%clk 0:03:00]} 3. Nf3 {[%clk 0:02:56]}  Nc6 {[%clk 0:03:00]} 4. d4 {[%clk 0:02:57]}  cxd4 {[%clk 0:03:00]} 5. Nxd4 {[%clk 0:02:58]}  Qc7 {[%clk 0:03:01]} 6. Be3 {[%clk 0:02:57]}  a6 {[%clk 0:03:01]} 7. Qf3 {[%clk 0:02:57]}  d6 {[%clk 0:02:57]} 8. O-O-O {[%clk 0:02:52]}  Bd7 {[%clk 0:02:56]} 9. Qg3 {[%clk 0:02:40]}  h5 {[%clk 0:02:54]} 10. f4 {[%clk 0:02:15]}  Nf6 {[%clk 0:02:50]} 11. Be2 {[%clk 0:02:00]}  Rc8 {[%clk 0:02:44]} 12. Kb1 {[%clk 0:01:46]}  b5 {[%clk 0:02:40]} 13. Bxb5 {[%clk 0:01:04]}  axb5 {[%clk 0:02:40]} 14. Ndxb5 {[%clk 0:01:04]}  Qb8 {[%clk 0:02:38]} 15. Rxd6 {[%clk 0:00:57]}  Bxd6 {[%clk 0:02:39]} 16. Qxg7 {[%clk 0:00:54]}  Rg8 {[%clk 0:02:32]} 17. Qxf6 {[%clk 0:00:54]}  Be7 {[%clk 0:02:23]} 18. Qh6 {[%clk 0:00:50]}  Na5 {[%clk 0:02:23]} 19. Qh7 {[%clk 0:00:35]}  Rf8 {[%clk 0:02:10]} 20. Qxh5 {[%clk 0:00:33]}  Nc4 {[%clk 0:02:03]} 21. Bd4 {[%clk 0:00:20]}  Qxf4 {[%clk 0:01:59]} 22. Rd1 {[%clk 0:00:18]}  Rg8 {[%clk 0:01:48]} 23. b3 {[%clk 0:00:15]}  Nd2+ {[%clk 0:01:32]} 24. Kb2 {[%clk 0:00:15]}  Nxe4 {[%clk 0:01:32]} 25. Nxe4 {[%clk 0:00:13]}  Qxe4 {[%clk 0:01:32]} 26. Bc3 {[%clk 0:00:11]}  Rc5 {[%clk 0:01:26]} 27. Qxc5 {[%clk 0:00:04]}  Bxc5 {[%clk 0:01:24]} 28. Bf6 {[%clk 0:00:02]}  Rxg2 {[%clk 0:01:12]} 29. Nc7+ {[%clk 0:00:02]}  Kf8 {[%clk 0:01:13]} 30. Rxd7 {[%clk 0:00:02]}  Qxc2+ {[%clk 0:01:13]} 31. Ka1 {[%clk 0:00:02]}  Qxa2# {[%clk 0:01:14]} 0-1


[Site "https://www.chess.com"]

[Event "Titled Tuesday Blitz January 17 Early 2023"]
[White "Kozin, Yuri"]
[Black "Kosakowski, Jakub"]
[WhiteFideId "4129920"]
[BlackFideId "1185080"]
[WhiteElo "2251"]
[BlackElo "2485"]
[Result "1-0"]
[Round "03"]
[TimeControl "180+2"]
[Date "2023.01.17"]
[WhiteClock "0:00:37"]
[BlackClock "0:01:13"]

1. e4 {[%clk 0:02:59]}  c5 {[%clk 0:02:56]} 2. Nf3 {[%clk 0:02:59]}  d6 {[%clk 0:02:56]} 3. d4 {[%clk 0:02:59]}  cxd4 {[%clk 0:02:56]} 4. Nxd4 {[%clk 0:03:00]}  Nf6 {[%clk 0:02:57]} 5. Nc3 {[%clk 0:03:00]}  Nc6 {[%clk 0:02:57]} 6. Bc4 {[%clk 0:02:59]}  e6 {[%clk 0:02:57]} 7. Bb3 {[%clk 0:03:00]}  Be7 {[%clk 0:02:56]} 8. Be3 {[%clk 0:03:00]}  a6 {[%clk 0:02:55]} 9. Qe2 {[%clk 0:03:00]}  Bd7 {[%clk 0:02:55]} 10. O-O-O {[%clk 0:03:00]}  Nxd4 {[%clk 0:02:55]} 11. Bxd4 {[%clk 0:03:00]}  b5 {[%clk 0:02:55]} 12. g4 {[%clk 0:02:33]}  b4 {[%clk 0:02:49]} 13. Na4 {[%clk 0:02:32]}  Bb5 {[%clk 0:02:19]} 14. Qe3 {[%clk 0:02:14]}  Rb8 {[%clk 0:02:07]} 15. g5 {[%clk 0:02:03]}  Nd7 {[%clk 0:02:05]} 16. Bxg7 {[%clk 0:01:55]}  Rg8 {[%clk 0:02:05]} 17. Bf6 {[%clk 0:01:55]}  Bxf6 {[%clk 0:02:00]} 18. gxf6 {[%clk 0:01:54]}  Qa5 {[%clk 0:02:01]} 19. Rxd6 {[%clk 0:01:30]}  Bxa4 {[%clk 0:02:00]} 20. Bxa4 {[%clk 0:01:09]}  Qxa4 {[%clk 0:02:01]} 21. Qa7 {[%clk 0:01:09]}  Rd8 {[%clk 0:01:58]} 22. Kb1 {[%clk 0:00:58]}  Rg5 {[%clk 0:01:17]} 23. Rhd1 {[%clk 0:00:45]}  Ra5 {[%clk 0:01:16]} 24. a3 {[%clk 0:00:40]}  bxa3 {[%clk 0:01:15]} 25. Rxd7 {[%clk 0:00:40]}  Rxd7 {[%clk 0:01:13]} 26. Qb8+ {[%clk 0:00:37]} 1-0


[Site "https://www.chess.com"]